[Event "Titled Tuesday Blitz December 27 Early 2022"]
[White "Mathieu, Phileas"]
[Black "Altman, Joshua"]
[WhiteFideId "36048410"]
[BlackFideId "426210"]
[WhiteElo "2374"]
[BlackElo "2120"]
[Result "1-0"]
[Round "08"]
[TimeControl "180+2"]
[Date "2022.12.27"]
[WhiteClock "0:01:20"]
[BlackClock "0:00:05"]

1. d4 {[%clk 0:03:00]}  Nf6 {[%clk 0:02:59]} 2. c4 {[%clk 0:02:59]}  e6 {[%clk 0:03:00]} 3. Nf3 {[%clk 0:02:59]}  b6 {[%clk 0:03:00]} 4. g3 {[%clk 0:02:58]}  Bb7 {[%clk 0:03:00]} 5. Bg2 {[%clk 0:02:58]}  Bb4+ {[%clk 0:03:00]} 6. Bd2 {[%clk 0:02:58]}  Bxd2+ {[%clk 0:03:00]} 7. Nbxd2 {[%clk 0:02:59]}  c5 {[%clk 0:03:00]} 8. dxc5 {[%clk 0:02:54]}  bxc5 {[%clk 0:03:00]} 9. O-O {[%clk 0:02:55]}  O-O {[%clk 0:03:00]} 10. Re1 {[%clk 0:02:54]}  Nc6 {[%clk 0:02:52]} 11. e4 {[%clk 0:02:54]}  d6 {[%clk 0:02:52]} 12. e5 {[%clk 0:02:49]}  dxe5 {[%clk 0:02:39]} 13. Nxe5 {[%clk 0:02:50]}  Qc7 {[%clk 0:02:38]} 14. Nxc6 {[%clk 0:02:48]}  Bxc6 {[%clk 0:02:39]} 15. Bxc6 {[%clk 0:02:49]}  Qxc6 {[%clk 0:02:39]} 16. Qe2 {[%clk 0:02:49]}  Rfd8 {[%clk 0:02:36]} 17. b3 {[%clk 0:02:48]}  h6 {[%clk 0:02:35]} 18. Ne4 {[%clk 0:02:48]}  Nxe4 {[%clk 0:02:23]} 19. Qxe4 {[%clk 0:02:49]}  Qxe4 {[%clk 0:02:17]} 20. Rxe4 {[%clk 0:02:47]}  Rd2 {[%clk 0:02:18]} 21. Kf1 {[%clk 0:02:40]}  Rad8 {[%clk 0:02:16]} 22. Re5 {[%clk 0:02:39]}  Rc2 {[%clk 0:02:14]} 23. Kg2 {[%clk 0:02:32]}  Rdd2 {[%clk 0:02:13]} 24. Rf1 {[%clk 0:02:32]}  Rxa2 {[%clk 0:02:12]} 25. Rxc5 {[%clk 0:02:32]}  Rab2 {[%clk 0:02:12]} 26. Rb5 {[%clk 0:02:31]}  Rd3 {[%clk 0:02:12]} 27. Rb8+ {[%clk 0:02:31]}  Kh7 {[%clk 0:02:12]} 28. Rb7 {[%clk 0:02:32]}  Kg6 {[%clk 0:02:02]} 29. b4 {[%clk 0:02:14]}  Rc3 {[%clk 0:01:58]} 30. c5 {[%clk 0:02:14]}  Rxc5 {[%clk 0:01:56]} 31. Rxf7 {[%clk 0:02:04]}  Rxb4 {[%clk 0:01:23]} 32. Rxa7 {[%clk 0:02:03]}  Rc2 {[%clk 0:01:16]} 33. h4 {[%clk 0:02:00]}  Rbb2 {[%clk 0:01:16]} 34. Ra3 {[%clk 0:02:00]}  e5 {[%clk 0:01:15]} 35. Rf3 {[%clk 0:01:59]}  e4 {[%clk 0:01:12]} 36. Re3 {[%clk 0:01:58]}  Kf5 {[%clk 0:01:13]} 37. h5 {[%clk 0:01:52]}  Rd2 {[%clk 0:01:06]} 38. Ra3 {[%clk 0:01:40]}  Kg4 {[%clk 0:01:02]} 39. Ra7 {[%clk 0:01:35]}  e3 {[%clk 0:00:59]} 40. Rxg7+ {[%clk 0:01:35]}  Kf5 {[%clk 0:00:56]} 41. Rf7+ {[%clk 0:01:34]}  Ke6 {[%clk 0:00:55]} 42. Rf3 {[%clk 0:01:29]}  e2 {[%clk 0:00:32]} 43. Re1 {[%clk 0:01:27]}  Kd5 {[%clk 0:00:27]} 44. Re3 {[%clk 0:01:26]}  Kd4 {[%clk 0:00:26]} 45. g4 {[%clk 0:01:26]}  Rbc2 {[%clk 0:00:22]} 46. Kf3 {[%clk 0:01:26]}  Rb2 {[%clk 0:00:20]} 47. R1xe2 {[%clk 0:01:25]}  Rxe2 {[%clk 0:00:19]} 48. Rxe2 {[%clk 0:01:26]}  Rb3+ {[%clk 0:00:19]} 49. Kf4 {[%clk 0:01:26]}  Rb5 {[%clk 0:00:16]} 50. Re6 {[%clk 0:01:25]}  Kd3 {[%clk 0:00:15]} 51. f3 {[%clk 0:01:20]}  Rb4+ {[%clk 0:00:05]} 52. Kg3 {[%clk 0:01:20]} 1-0


[Site "https://www.chess.com"]

[Event "Titled Tuesday Blitz December 27 Early 2022"]
[White "Matinian, Nikita"]
[Black "Makarian, Rudik"]
[WhiteFideId "24129100"]
[BlackFideId "44105681"]
[WhiteElo "2407"]
[BlackElo "2545"]
[Result "0-1"]
[Round "08"]
[TimeControl "180+2"]
[Date "2022.12.27"]
[WhiteClock "0:00:03"]
[BlackClock "0:01:24"]

1. e4 {[%clk 0:03:00]}  d6 {[%clk 0:03:00]} 2. d4 {[%clk 0:03:00]}  Nf6 {[%clk 0:03:01]} 3. Nc3 {[%clk 0:03:01]}  e5 {[%clk 0:03:00]} 4. Nf3 {[%clk 0:03:00]}  Nbd7 {[%clk 0:02:59]} 5. Bc4 {[%clk 0:03:00]}  Be7 {[%clk 0:03:00]} 6. O-O {[%clk 0:02:59]}  O-O {[%clk 0:03:00]} 7. Re1 {[%clk 0:02:59]}  c6 {[%clk 0:03:00]} 8. a4 {[%clk 0:02:59]}  exd4 {[%clk 0:03:01]} 9. Qxd4 {[%clk 0:02:57]}  Ne5 {[%clk 0:03:02]} 10. Nxe5 {[%clk 0:02:45]}  dxe5 {[%clk 0:03:03]} 11. Qxe5 {[%clk 0:02:41]}  Ng4 {[%clk 0:03:03]} 12. Qf4 {[%clk 0:02:28]}  Bd6 {[%clk 0:03:01]} 13. e5 {[%clk 0:02:25]}  Nxe5 {[%clk 0:03:01]} 14. Rxe5 {[%clk 0:01:31]}  Qc7 {[%clk 0:03:01]} 15. Bxf7+ {[%clk 0:00:46]}  Kh8 {[%clk 0:02:59]} 16. Qh4 {[%clk 0:00:45]}  Bxe5 {[%clk 0:02:59]} 17. Bg6 {[%clk 0:00:43]}  h6 {[%clk 0:02:59]} 18. Ne4 {[%clk 0:00:33]}  Bf5 {[%clk 0:02:24]} 19. Bxf5 {[%clk 0:00:31]}  Rxf5 {[%clk 0:02:25]} 20. c3 {[%clk 0:00:31]}  Bf4 {[%clk 0:02:21]} 21. Qg4 {[%clk 0:00:25]}  Raf8 {[%clk 0:02:19]} 22. g3 {[%clk 0:00:21]}  Bxc1 {[%clk 0:02:16]} 23. Rxc1 {[%clk 0:00:22]}  Qb6 {[%clk 0:02:13]} 24. b4 {[%clk 0:00:19]}  a5 {[%clk 0:01:57]} 25. bxa5 {[%clk 0:00:10]}  Qxa5 {[%clk 0:01:58]} 26. Rb1 {[%clk 0:00:06]}  R5f7 {[%clk 0:01:46]} 27. Nd6 {[%clk 0:00:03]}  Rxf2 {[%clk 0:01:45]} 28. Rxb7 {[%clk 0:00:03]}  Qxc3 {[%clk 0:01:24]} 0-1


[Site "https://www.chess.com"]

[Event "Titled Tuesday Blitz December 27 Early 2022"]
[White "McBryde, Lamel"]
[Black "Fabris, Alberto"]
[WhiteFideId "2058596"]
[BlackFideId "801348"]
[WhiteElo "1861"]
[BlackElo "2230"]
[Result "1-0"]
[Round "08"]
[TimeControl "180+2"]
[Date "2022.12.27"]
[WhiteClock "0:00:17"]
[BlackClock "0:00:08"]

1. Nf3 {[%clk 0:02:56]}  Nf6 {[%clk 0:02:59]} 2. b3 {[%clk 0:02:56]}  d5 {[%clk 0:02:53]} 3. Bb2 {[%clk 0:02:56]}  Bf5 {[%clk 0:02:53]} 4. d4 {[%clk 0:02:56]}  e6 {[%clk 0:02:52]} 5. a3 {[%clk 0:02:56]}  h6 {[%clk 0:02:51]} 6. e3 {[%clk 0:02:57]}  Bd6 {[%clk 0:02:49]} 7. Bd3 {[%clk 0:02:57]}  Bxd3 {[%clk 0:02:48]} 8. Qxd3 {[%clk 0:02:58]}  O-O {[%clk 0:02:45]} 9. Nbd2 {[%clk 0:02:58]}  c5 {[%clk 0:02:44]} 10. O-O {[%clk 0:02:57]}  Nc6 {[%clk 0:02:44]} 11. Ne5 {[%clk 0:02:58]}  Qc7 {[%clk 0:02:40]} 12. f4 {[%clk 0:02:58]}  Nd7 {[%clk 0:02:34]} 13. c4 {[%clk 0:02:45]}  cxd4 {[%clk 0:02:28]} 14. exd4 {[%clk 0:02:45]}  f5 {[%clk 0:02:14]} 15. Rae1 {[%clk 0:02:03]}  Rae8 {[%clk 0:02:09]} 16. Kh1 {[%clk 0:01:26]}  Bxe5 {[%clk 0:02:02]} 17. fxe5 {[%clk 0:01:23]}  Rf7 {[%clk 0:01:56]} 18. cxd5 {[%clk 0:01:22]}  Nd8 {[%clk 0:01:49]} 19. dxe6 {[%clk 0:01:18]}  Nxe6 {[%clk 0:01:48]} 20. Rxf5 {[%clk 0:01:18]}  Ndf8 {[%clk 0:01:32]} 21. Ref1 {[%clk 0:01:06]}  Rxf5 {[%clk 0:01:31]} 22. Qxf5 {[%clk 0:01:06]}  Qd7 {[%clk 0:01:19]} 23. Nc4 {[%clk 0:00:58]}  Qd5 {[%clk 0:01:04]} 24. Nd6 {[%clk 0:00:57]}  Re7 {[%clk 0:00:55]} 25. Qe4 {[%clk 0:00:51]}  Qxb3 {[%clk 0:00:51]} 26. Ba1 {[%clk 0:00:43]}  Qxa3 {[%clk 0:00:35]} 27. d5 {[%clk 0:00:42]}  Ng5 {[%clk 0:00:34]} 28. Qf5 {[%clk 0:00:37]}  Ngh7 {[%clk 0:00:18]} 29. Ne4 {[%clk 0:00:32]}  Qa5 {[%clk 0:00:14]} 30. d6 {[%clk 0:00:31]}  Re6 {[%clk 0:00:12]} 31. d7 {[%clk 0:00:25]}  Qd5 {[%clk 0:00:12]} 32. Qf7+ {[%clk 0:00:23]}  Kh8 {[%clk 0:00:11]} 33. Nd6 {[%clk 0:00:22]}  Rxd6 {[%clk 0:00:08]} 34. exd6 {[%clk 0:00:17]}  Qxd6 {[%clk 0:00:08]} 35. Qxg7# {[%clk 0:00:17]} 1-0


[Site "https://www.chess.com"]

[Event "Titled Tuesday Blitz December 27 Early 2022"]
[White "Melikhov, Evgeny V."]
[Black "Bilan, Danila"]
[WhiteFideId "4122046"]
[BlackFideId "24161918"]
[WhiteElo "2269"]
[BlackElo "2303"]
[Result "0-1"]
[Round "08"]
[TimeControl "180+2"]
[Date "2022.12.27"]
[WhiteClock "0:00:16"]
[BlackClock "0:00:08"]

1. d4 {[%clk 0:02:58]}  d5 {[%clk 0:02:53]} 2. c4 {[%clk 0:02:58]}  c6 {[%clk 0:02:53]} 3. Nc3 {[%clk 0:02:58]}  Nf6 {[%clk 0:02:53]} 4. e3 {[%clk 0:02:58]}  e6 {[%clk 0:02:49]} 5. Nf3 {[%clk 0:02:58]}  Nbd7 {[%clk 0:02:49]} 6. Bd3 {[%clk 0:02:58]}  Bd6 {[%clk 0:02:49]} 7. O-O {[%clk 0:02:57]}  O-O {[%clk 0:02:42]} 8. e4 {[%clk 0:02:57]}  dxc4 {[%clk 0:02:42]} 9. Bxc4 {[%clk 0:02:56]}  e5 {[%clk 0:02:43]} 10. Bg5 {[%clk 0:02:56]}  Qc7 {[%clk 0:02:41]} 11. d5 {[%clk 0:02:55]}  Nb6 {[%clk 0:02:13]} 12. Bb3 {[%clk 0:02:50]}  Bg4 {[%clk 0:02:10]} 13. dxc6 {[%clk 0:02:07]}  bxc6 {[%clk 0:01:53]} 14. h3 {[%clk 0:02:06]}  Bh5 {[%clk 0:01:50]} 15. Bxf6 {[%clk 0:02:05]}  gxf6 {[%clk 0:01:49]} 16. g4 {[%clk 0:02:05]}  Bg6 {[%clk 0:01:46]} 17. Qe2 {[%clk 0:02:04]}  Rfe8 {[%clk 0:01:27]} 18. Nd2 {[%clk 0:02:03]}  Bf8 {[%clk 0:01:23]} 19. Nc4 {[%clk 0:01:58]}  Bh6 {[%clk 0:01:17]} 20. f3 {[%clk 0:01:54]}  Rad8 {[%clk 0:01:13]} 21. Rad1 {[%clk 0:01:51]}  Bf4 {[%clk 0:01:06]} 22. Rxd8 {[%clk 0:01:40]}  Rxd8 {[%clk 0:01:05]} 23. Rd1 {[%clk 0:01:39]}  Rd4 {[%clk 0:00:46]} 24. Nxb6 {[%clk 0:01:07]}  Qxb6 {[%clk 0:00:43]} 25. Kg2 {[%clk 0:01:06]}  h5 {[%clk 0:00:37]} 26. Rd3 {[%clk 0:00:55]}  hxg4 {[%clk 0:00:36]} 27. hxg4 {[%clk 0:00:55]}  Kg7 {[%clk 0:00:30]} 28. Qd1 {[%clk 0:00:55]}  Rxd3 {[%clk 0:00:29]} 29. Qxd3 {[%clk 0:00:54]}  Qb8 {[%clk 0:00:28]} 30. Ne2 {[%clk 0:00:50]}  Qh8 {[%clk 0:00:21]} 31. Nxf4 {[%clk 0:00:50]}  exf4 {[%clk 0:00:20]} 32. Qd2 {[%clk 0:00:50]}  Qh6 {[%clk 0:00:19]} 33. Qf2 {[%clk 0:00:48]}  a5 {[%clk 0:00:18]} 34. Kg1 {[%clk 0:00:45]}  Qg5 {[%clk 0:00:18]} 35. Qd4 {[%clk 0:00:41]}  Qe5 {[%clk 0:00:16]} 36. Qxe5 {[%clk 0:00:41]}  fxe5 {[%clk 0:00:17]} 37. Kf2 {[%clk 0:00:39]}  Kf6 {[%clk 0:00:15]} 38. Ke2 {[%clk 0:00:39]}  Kg5 {[%clk 0:00:15]} 39. Ba4 {[%clk 0:00:32]}  c5 {[%clk 0:00:13]} 40. Be8 {[%clk 0:00:32]}  Kh4 {[%clk 0:00:07]} 41. Kf2 {[%clk 0:00:30]}  Kh3 {[%clk 0:00:07]} 42. b3 {[%clk 0:00:22]}  Kh2 {[%clk 0:00:07]} 43. a3 {[%clk 0:00:21]}  Kh3 {[%clk 0:00:07]} 44. Bb5 {[%clk 0:00:17]}  f6 {[%clk 0:00:07]} 45. Bf1+ {[%clk 0:00:16]}  Kh2 {[%clk 0:00:07]} 46. Bb5 {[%clk 0:00:16]}  Bf7 {[%clk 0:00:07]} 47. Bc4 {[%clk 0:00:16]}  Bxc4 {[%clk 0:00:07]} 48. bxc4 {[%clk 0:00:16]}  a4 {[%clk 0:00:08]} 0-1


[Site "https://www.chess.com"]

[Event "Titled Tuesday Blitz December 27 Early 2022"]
[White "Mendez Fortes, Eduardo Jesus"]
[Black "Akylbekov, Nasyr"]
[WhiteFideId "3502376"]
[BlackFideId "13800353"]
[WhiteElo "2250"]
[BlackElo "2239"]
[Result "0-1"]
[Round "08"]
[TimeControl "180+2"]
[Date "2022.12.27"]
[WhiteClock "0:00:01"]
[BlackClock "0:01:21"]

1. e4 {[%clk 0:03:00]}  e5 {[%clk 0:02:59]} 2. Nf3 {[%clk 0:02:59]}  Nc6 {[%clk 0:02:59]} 3. Bb5 {[%clk 0:02:56]}  a6 {[%clk 0:02:59]} 4. Ba4 {[%clk 0:02:53]}  Nf6 {[%clk 0:02:59]} 5. O-O {[%clk 0:02:52]}  Be7 {[%clk 0:02:59]} 6. Re1 {[%clk 0:02:50]}  b5 {[%clk 0:03:00]} 7. Bb3 {[%clk 0:02:48]}  O-O {[%clk 0:03:01]} 8. c3 {[%clk 0:02:49]}  d5 {[%clk 0:03:01]} 9. exd5 {[%clk 0:02:50]}  Nxd5 {[%clk 0:03:00]} 10. Nxe5 {[%clk 0:02:50]}  Nxe5 {[%clk 0:03:01]} 11. Rxe5 {[%clk 0:02:51]}  Nf6 {[%clk 0:03:02]} 12. d4 {[%clk 0:02:50]}  Bd6 {[%clk 0:03:02]} 13. Re1 {[%clk 0:02:50]}  Ng4 {[%clk 0:03:03]} 14. h3 {[%clk 0:02:49]}  Qh4 {[%clk 0:03:03]} 15. Qf3 {[%clk 0:02:46]}  Nxf2 {[%clk 0:03:03]} 16. Re2 {[%clk 0:02:44]}  Ng4 {[%clk 0:02:50]} 17. Bf4 {[%clk 0:02:15]}  Bb7 {[%clk 0:02:13]} 18. Qxb7 {[%clk 0:01:52]}  Bxf4 {[%clk 0:02:12]} 19. Qf3 {[%clk 0:00:31]}  Nf6 {[%clk 0:01:56]} 20. Na3 {[%clk 0:00:24]}  Rae8 {[%clk 0:01:53]} 21. Rxe8 {[%clk 0:00:24]}  Rxe8 {[%clk 0:01:53]} 22. Rf1 {[%clk 0:00:22]}  Bd6 {[%clk 0:01:53]} 23. Nc2 {[%clk 0:00:22]}  Qg5 {[%clk 0:01:48]} 24. Ne1 {[%clk 0:00:13]}  Qg3 {[%clk 0:01:34]} 25. Qxg3 {[%clk 0:00:13]}  Bxg3 {[%clk 0:01:35]} 26. Nf3 {[%clk 0:00:11]}  Re7 {[%clk 0:01:34]} 27. Bd1 {[%clk 0:00:09]}  h6 {[%clk 0:01:32]} 28. a4 {[%clk 0:00:09]}  Nd5 {[%clk 0:01:31]} 29. Bb3 {[%clk 0:00:06]}  Ne3 {[%clk 0:01:30]} 30. Ra1 {[%clk 0:00:06]}  g5 {[%clk 0:01:20]} 31. axb5 {[%clk 0:00:01]}  axb5 {[%clk 0:01:21]} 0-1


[Site "https://www.chess.com"]

[Event "Titled Tuesday Blitz December 27 Early 2022"]
[White "Moreno Perez, Tobias Sebastian"]
[Black "Belozerov, Andrei"]
[WhiteFideId "186716"]
[BlackFideId "4120213"]
[WhiteElo "2256"]
[BlackElo "2461"]
[Result "0-1"]
[Round "08"]
[TimeControl "180+2"]
[Date "2022.12.27"]
[WhiteClock "0:00:01"]
[BlackClock "0:00:50"]

1. Nf3 {[%clk 0:03:00]}  d5 {[%clk 0:02:58]} 2. b3 {[%clk 0:03:01]}  Bg4 {[%clk 0:02:57]} 3. Bb2 {[%clk 0:03:00]}  Bxf3 {[%clk 0:02:57]} 4. exf3 {[%clk 0:02:59]}  e6 {[%clk 0:02:57]} 5. g3 {[%clk 0:03:00]}  Nf6 {[%clk 0:02:57]} 6. Bg2 {[%clk 0:03:00]}  g6 {[%clk 0:02:57]} 7. O-O {[%clk 0:03:01]}  Bg7 {[%clk 0:02:58]} 8. f4 {[%clk 0:03:01]}  O-O {[%clk 0:02:58]} 9. d3 {[%clk 0:03:01]}  c5 {[%clk 0:02:57]} 10. c4 {[%clk 0:03:00]}  Nc6 {[%clk 0:02:57]} 11. Nd2 {[%clk 0:03:00]}  Nh5 {[%clk 0:02:50]} 12. Bxg7 {[%clk 0:02:58]}  Nxg7 {[%clk 0:02:50]} 13. Rc1 {[%clk 0:02:57]}  b6 {[%clk 0:02:48]} 14. Nf3 {[%clk 0:02:55]}  Nf5 {[%clk 0:02:46]} 15. Ne5 {[%clk 0:02:47]}  Nxe5 {[%clk 0:02:45]} 16. fxe5 {[%clk 0:02:47]}  Rb8 {[%clk 0:02:09]} 17. cxd5 {[%clk 0:02:29]}  exd5 {[%clk 0:02:09]} 18. Qf3 {[%clk 0:02:25]}  Nd4 {[%clk 0:02:07]} 19. Qe3 {[%clk 0:02:17]}  Re8 {[%clk 0:02:01]} 20. f4 {[%clk 0:02:09]}  a5 {[%clk 0:01:55]} 21. Kh1 {[%clk 0:02:06]}  Qd7 {[%clk 0:01:52]} 22. Qf2 {[%clk 0:01:56]}  Rbd8 {[%clk 0:01:47]} 23. Rce1 {[%clk 0:01:51]}  Kg7 {[%clk 0:01:41]} 24. h4 {[%clk 0:01:46]}  h5 {[%clk 0:01:32]} 25. Kh2 {[%clk 0:01:46]}  Re7 {[%clk 0:01:23]} 26. Bh3 {[%clk 0:01:44]}  Qc6 {[%clk 0:01:19]} 27. f5 {[%clk 0:01:42]}  gxf5 {[%clk 0:01:14]} 28. Bxf5 {[%clk 0:01:40]}  Rde8 {[%clk 0:01:04]} 29. Bh3 {[%clk 0:01:29]}  Qg6 {[%clk 0:00:58]} 30. Qf6+ {[%clk 0:01:24]}  Kg8 {[%clk 0:00:57]} 31. Qf4 {[%clk 0:00:47]}  Qg7 {[%clk 0:00:55]} 32. e6 {[%clk 0:00:14]}  fxe6 {[%clk 0:00:55]} 33. Re5 {[%clk 0:00:10]}  Rf7 {[%clk 0:00:54]} 34. Qe3 {[%clk 0:00:02]}  Rxf1 {[%clk 0:00:53]} 35. Rg5 {[%clk 0:00:03]}  Nf3+ {[%clk 0:00:51]} 36. Qxf3 {[%clk 0:00:01]}  Rxf3 {[%clk 0:00:50]} 0-1


[Site "https://www.chess.com"]

[Event "Titled Tuesday Blitz December 27 Early 2022"]
[White "Musovic, Armin"]
[Black "Tarasova, Viktoriya"]
[WhiteFideId "939935"]
[BlackFideId "4175840"]
[WhiteElo "2261"]
[BlackElo "2226"]
[Result "1-0"]
[Round "08"]
[TimeControl "180+2"]
[Date "2022.12.27"]
[WhiteClock "0:00:26"]
[BlackClock "0:00:04"]

1. a3 {[%clk 0:03:00]}  Nf6 {[%clk 0:02:59]} 2. Nc3 {[%clk 0:03:01]}  e5 {[%clk 0:03:00]} 3. d4 {[%clk 0:03:02]}  exd4 {[%clk 0:02:58]} 4. Qxd4 {[%clk 0:03:03]}  Nc6 {[%clk 0:02:58]} 5. Qa4 {[%clk 0:03:03]}  d5 {[%clk 0:02:57]} 6. Bg5 {[%clk 0:03:03]}  d4 {[%clk 0:02:41]} 7. O-O-O {[%clk 0:03:03]}  Bd7 {[%clk 0:02:40]} 8. Nb5 {[%clk 0:03:02]}  Bc5 {[%clk 0:02:39]} 9. Nf3 {[%clk 0:03:02]}  a6 {[%clk 0:02:30]} 10. Qc4 {[%clk 0:03:02]}  axb5 {[%clk 0:01:56]} 11. Qxc5 {[%clk 0:03:01]}  b4 {[%clk 0:01:56]} 12. Nxd4 {[%clk 0:02:59]}  Nxd4 {[%clk 0:01:40]} 13. Rxd4 {[%clk 0:02:54]}  bxa3 {[%clk 0:01:40]} 14. bxa3 {[%clk 0:02:50]}  b6 {[%clk 0:01:21]} 15. Re4+ {[%clk 0:02:31]}  Be6 {[%clk 0:01:16]} 16. Qc6+ {[%clk 0:02:31]}  Kf8 {[%clk 0:01:11]} 17. Bxf6 {[%clk 0:02:31]}  gxf6 {[%clk 0:01:09]} 18. Qc3 {[%clk 0:02:18]}  Qd5 {[%clk 0:00:49]} 19. Qxf6 {[%clk 0:01:52]}  Rg8 {[%clk 0:00:37]} 20. Re3 {[%clk 0:01:39]}  Qa2 {[%clk 0:00:29]} 21. Qc3 {[%clk 0:01:30]}  Rg4 {[%clk 0:00:24]} 22. Qb2 {[%clk 0:00:54]}  Qd5 {[%clk 0:00:17]} 23. Rd3 {[%clk 0:00:52]}  Qg5+ {[%clk 0:00:14]} 24. e3 {[%clk 0:00:53]}  Rga4 {[%clk 0:00:12]} 25. h4 {[%clk 0:00:40]}  Qa5 {[%clk 0:00:10]} 26. Be2 {[%clk 0:00:27]}  Rxa3 {[%clk 0:00:10]} 27. Rxa3 {[%clk 0:00:26]}  Qxa3 {[%clk 0:00:10]} 28. Qxa3+ {[%clk 0:00:27]}  Rxa3 {[%clk 0:00:10]} 29. Kd2 {[%clk 0:00:26]}  Ra5 {[%clk 0:00:09]} 30. e4 {[%clk 0:00:26]}  h6 {[%clk 0:00:09]} 31. f4 {[%clk 0:00:26]}  Ke7 {[%clk 0:00:09]} 32. Bd3 {[%clk 0:00:26]}  Bd7 {[%clk 0:00:07]} 33. Rg1 {[%clk 0:00:26]}  Rh5 {[%clk 0:00:05]} 34. g3 {[%clk 0:00:26]}  Ra5 {[%clk 0:00:04]} 35. g4 {[%clk 0:00:26]} 1-0


[Site "https://www.chess.com"]

[Event "Titled Tuesday Blitz December 27 Early 2022"]
[White "Oparin, Grigoriy"]
[Black "Babazada, Khazar"]
[WhiteFideId "24125890"]
[BlackFideId "13413554"]
[WhiteElo "2667"]
[BlackElo "2474"]
[Result "0-1"]
[Round "08"]
[TimeControl "180+2"]
[Date "2022.12.27"]
[WhiteClock "0:00:01"]
[BlackClock "0:00:26"]

1. e4 {[%clk 0:03:00]}  c5 {[%clk 0:02:55]} 2. Nf3 {[%clk 0:03:01]}  d6 {[%clk 0:02:49]} 3. d4 {[%clk 0:03:01]}  cxd4 {[%clk 0:02:50]} 4. Nxd4 {[%clk 0:03:01]}  Nf6 {[%clk 0:02:51]} 5. Nc3 {[%clk 0:03:02]}  Nc6 {[%clk 0:02:49]} 6. Bg5 {[%clk 0:03:01]}  Bd7 {[%clk 0:02:49]} 7. Qd2 {[%clk 0:03:00]}  a6 {[%clk 0:02:49]} 8. Nxc6 {[%clk 0:02:57]}  Bxc6 {[%clk 0:02:47]} 9. f3 {[%clk 0:02:57]}  e6 {[%clk 0:02:46]} 10. O-O-O {[%clk 0:02:58]}  Be7 {[%clk 0:02:46]} 11. h4 {[%clk 0:02:57]}  Qc7 {[%clk 0:02:46]} 12. Kb1 {[%clk 0:02:56]}  b5 {[%clk 0:02:45]} 13. Ne2 {[%clk 0:02:56]}  Rc8 {[%clk 0:02:27]} 14. Nd4 {[%clk 0:02:55]}  Bd7 {[%clk 0:02:27]} 15. Bd3 {[%clk 0:02:46]}  h6 {[%clk 0:02:27]} 16. Be3 {[%clk 0:02:43]}  d5 {[%clk 0:02:27]} 17. e5 {[%clk 0:02:28]}  Qxe5 {[%clk 0:02:16]} 18. g4 {[%clk 0:02:29]}  Qc7 {[%clk 0:02:12]} 19. g5 {[%clk 0:02:28]}  Nh5 {[%clk 0:02:10]} 20. Rhe1 {[%clk 0:02:15]}  hxg5 {[%clk 0:01:45]} 21. hxg5 {[%clk 0:02:15]}  g6 {[%clk 0:01:45]} 22. f4 {[%clk 0:01:55]}  Ng3 {[%clk 0:01:46]} 23. Qg2 {[%clk 0:01:49]}  Ne4 {[%clk 0:01:38]} 24. Bxe4 {[%clk 0:01:49]}  dxe4 {[%clk 0:01:36]} 25. Qxe4 {[%clk 0:01:50]}  Bc6 {[%clk 0:01:23]} 26. Nxc6 {[%clk 0:01:01]}  Qxc6 {[%clk 0:01:23]} 27. Qd3 {[%clk 0:01:02]}  Rd8 {[%clk 0:01:15]} 28. Qe2 {[%clk 0:01:01]}  Rxd1+ {[%clk 0:01:11]} 29. Rxd1 {[%clk 0:01:02]}  Rh1 {[%clk 0:01:11]} 30. a3 {[%clk 0:00:50]}  a5 {[%clk 0:01:08]} 31. Bc1 {[%clk 0:00:46]}  Rxd1 {[%clk 0:01:06]} 32. Qxd1 {[%clk 0:00:47]}  Bd6 {[%clk 0:01:00]} 33. Qd4 {[%clk 0:00:46]}  Qd5 {[%clk 0:00:57]} 34. Qc3 {[%clk 0:00:44]}  b4 {[%clk 0:00:55]} 35. Qc8+ {[%clk 0:00:39]}  Ke7 {[%clk 0:00:56]} 36. a4 {[%clk 0:00:36]}  b3 {[%clk 0:00:53]} 37. cxb3 {[%clk 0:00:23]}  Qxb3 {[%clk 0:00:53]} 38. Qc2 {[%clk 0:00:23]}  Qd5 {[%clk 0:00:44]} 39. b3 {[%clk 0:00:20]}  Bb4 {[%clk 0:00:41]} 40. Qc4 {[%clk 0:00:19]}  Qb7 {[%clk 0:00:38]} 41. Kc2 {[%clk 0:00:19]}  f6 {[%clk 0:00:35]} 42. gxf6+ {[%clk 0:00:19]}  Kxf6 {[%clk 0:00:36]} 43. Bb2+ {[%clk 0:00:19]}  Kf5 {[%clk 0:00:35]} 44. Qb5+ {[%clk 0:00:06]}  Qd5 {[%clk 0:00:32]} 45. Qxd5+ {[%clk 0:00:03]}  exd5 {[%clk 0:00:33]} 46. Bc1 {[%clk 0:00:04]}  Ke4 {[%clk 0:00:28]} 47. Kd1 {[%clk 0:00:02]}  Kd3 {[%clk 0:00:27]} 48. Bb2 {[%clk 0:00:01]}  d4 {[%clk 0:00:26]} 49. Bc1 {[%clk 0:00:01]}  Kc3 {[%clk 0:00:26]} 50. Ke2 {[%clk 0:00:01]}  Kc2 {[%clk 0:00:26]} 0-1


[Site "https://www.chess.com"]